bitfinex/quotes_ETHUSD_20250324
["timestamp","ask_amount","ask_price","bid_price","bid_amount"]
[1742789308539,9.8933,2021.6,2021.4,27.34]
[1742789308842,4.94658,2021.6,2021.4,27.34]
[1742789309120,4.94682,2021.5,2021.4,27.34]
[1742789309429,8.25868154,2021.5,2021.4,27.34]
[1742789312047,0.7964,2021.7,2021.4,27.34]
[1742789312048,11.25831154,2021.7,2021.4,27.34]
[1742789312225,6.31186154,2021.7,2021.4,33.08306]
[1742789312541,11.25822154,2021.7,2021.4,28.1361]
[1742789313326,11.25824154,2021.7,2021.4,28.1361]
[1742789313525,6.31186154,2021.7,2021.4,28.1361]
[1742789313706,6.31186154,2021.7,2021.4,33.08315]
[1742789313896,6.31186154,2021.7,2021.4,28.1361]
[1742789314097,11.25834154,2021.7,2021.4,28.1361]
[1742789314307,4.94669,2021.6,2021.4,28.1361]
[1742789314502,11.25834154,2021.7,2021.4,28.1361]
[1742789315339,6.31186154,2021.7,2021.4,33.08315]
[1742789316016,11.25626276,2021.7,2021.4,31.939144]
[1742789316523,6.30988276,2021.7,2021.4,36.886194]
[1742789317041,0.7964,2022.1,2021.7,4.94632]
[1742789317343,3.31186154,2022.0,2021.8,0.8221]
[1742789317827,8.25749154,2022.0,2021.8,0.8221]
[1742789318045,3.0,2021.9,2021.8,0.8221]
[1742789318704,3.31186154,2022.0,2021.8,0.8221]
[1742789318902,3.0,2022.1,2021.8,1.398959]
[1742789319103,3.31186154,2022.2,2021.9,4.94582]
[1742789319513,3.31186154,2022.2,2021.8,6.345009]
[1742789320151,8.25707154,2022.2,2021.8,6.345009]
[1742789320317,3.31186154,2022.2,2021.9,4.94581]
[1742789320524,3.31186154,2022.2,2022.0,5.5798769]
[1742789320705,8.25654154,2022.4,2022.0,5.5798769]
[1742789320913,3.31186154,2022.6,2022.3,4.94482]
[1742789321613,3.31186154,2022.8,2022.4,4.9445]
[1742789321825,8.25553154,2022.8,2022.5,0.49445]
[1742789322137,3.31186154,2022.8,2022.5,0.49445]
[1742789322436,3.31186154,2022.8,2022.6,0.8221]
[1742789322819,3.31186154,2022.8,2022.6,5.76613]
[1742789323011,3.0,2022.9,2022.6,5.76613]
[1742789323210,3.0,2022.9,2022.6,0.8221]
[1742789323535,3.0,2022.9,2022.6,5.76619]
[1742789323739,0.3761668,2023.2,2022.7,4.94373]
[1742789323740,4.94267,2023.2,2022.7,4.94373]
[1742789323911,3.31186154,2023.1,2022.7,4.94372]
[1742789324109,6.31186154,2023.1,2022.8,4.94358]
[1742789324626,8.25453154,2023.2,2022.8,4.94358]
[1742789324818,3.31186154,2023.1,2022.8,6.1734686]
[1742789325027,3.31186154,2023.1,2022.8,1.2298886]
[1742789325218,3.31186154,2022.9,2022.6,7.355306]
[1742789325846,3.31186154,2022.9,2022.6,2.411236]
[1742789326136,4.94323,2023.0,2022.6,2.411236]
[1742789326345,3.31186154,2022.7,2022.5,5.168]
[1742789326510,4.94421,2022.6,2022.4,0.8221]
[1742789326711,3.31186154,2022.5,2022.4,0.8221]
[1742789327610,3.31186154,2022.5,2022.2,38.28402]
[1742789327810,3.31186154,2022.5,2022.2,47.61537869]
[1742789328011,3.31186154,2022.5,2022.2,42.67040869]
[1742789328339,3.31186154,2022.5,2022.3,4.94473]
[1742789328542,3.31186154,2022.7,2022.5,4.94437]
[1742789328847,8.47886154,2023.2,2022.2,37.72548869]
[1742789328848,3.31186154,2022.8,2022.6,5.766]
[1742789329143,8.25504154,2023.0,2022.6,5.766]
[1742789329359,8.25504154,2023.0,2022.6,10.921]
[1742789331024,4.9434,2022.9,2022.6,5.9771]
[1742789331627,4.9434,2022.9,2022.6,0.8221]
[1742789331834,3.31186154,2022.8,2022.6,5.9631]
[1742789332440,8.25556154,2022.8,2022.6,5.141]
[1742789332647,8.25556154,2022.8,2022.5,5.143]
[1742789333142,13.19942154,2022.8,2022.5,5.143]
[1742789333333,4.94397,2022.7,2022.4,0.785]
[1742789333537,3.31186154,2022.6,2022.4,0.785]
[1742789333738,3.31186154,2022.6,2022.4,5.77153635]
[1742789335114,3.31186154,2022.6,2022.4,10.71611635]
[1742789335449,3.31186154,2022.8,2022.5,4.94436]
[1742789335815,8.25550154,2022.8,2022.4,10.71611635]
[1742789337820,8.25550154,2022.8,2022.4,0.785]
[1742789338044,4.94398,2022.7,2022.4,0.785]
[1742789338650,3.31186154,2022.8,2022.4,5.72959]
[1742789338848,3.31186154,2022.8,2022.5,4.94435]
[1742789339065,8.25555154,2022.8,2022.4,5.72959]
[1742789340022,8.25555154,2022.8,2022.4,0.785]
[1742789340023,3.31186154,2022.6,2022.4,0.785]
[1742789340336,3.31186154,2022.6,2022.3,10.08386]
[1742789340839,3.31186154,2022.6,2022.3,10.89544932]
[1742789341771,0.7888,2023.3,2022.7,4.94368]
[1742789342065,3.31186154,2023.0,2022.7,4.94368]
[1742789342270,3.31186154,2023.0,2022.6,4.94411]
[1742789342452,3.31186154,2022.8,2022.6,4.94411]
[1742789342770,3.31186154,2022.8,2022.6,33.350377]
[1742789342923,4.94304,2023.1,2022.6,33.350377]
[1742789342924,3.31186154,2023.0,2022.7,4.94388]
[1742789343743,8.25503154,2023.0,2022.6,38.294377]
[1742789344050,3.31186154,2023.0,2022.6,38.294377]
[1742789344245,3.31186154,2023.0,2022.6,33.350347]
[1742789344416,3.31186154,2023.0,2022.6,38.294327]
[1742789344621,3.31186154,2023.0,2022.6,33.350337]
[1742789344841,8.25502154,2023.0,2022.6,33.350337]
[1742789345039,3.31186154,2023.0,2022.6,33.350287]
[1742789345238,3.31186154,2023.0,2022.7,4.94387]
[1742789345435,3.31186154,2023.0,2022.7,8.29253729]
[1742789345837,4.94297,2023.1,2022.7,8.29253729]
[1742789346041,3.31186154,2023.0,2022.7,8.29253729]
[1742789346925,3.31186154,2023.0,2022.7,3.34866729]
[1742789347129,3.31186154,2023.0,2022.6,38.294287]
[1742789347658,3.31186154,2023.0,2022.7,4.94385]
[1742789347866,8.25561154,2022.8,2022.6,27.339]
[1742789348164,13.19949154,2022.8,2022.6,27.339]
[1742789348352,4.94388,2022.7,2022.6,27.339]
[1742789348867,3.31186154,2022.8,2022.6,27.339]
[1742789349970,8.25554154,2022.8,2022.6,27.339]
[1742789351169,3.31186154,2022.8,2022.6,27.339]
[1742789351464,4.94388,2022.7,2022.6,27.339]
[1742789351669,4.94499,2022.3,2022.0,32.414]
[1742789351831,3.31186154,2022.1,2022.0,27.337]
[1742789352031,8.25721154,2022.1,2022.0,27.337]
[1742789352742,3.31186154,2022.1,2022.0,27.337]
[1742789352942,8.25721154,2022.1,2022.0,27.337]
[1742789354062,8.25721154,2022.1,2021.8,0.96653905]
[1742789354063,4.94584,2021.9,2021.8,0.96653905]
[1742789354257,3.31186154,2021.9,2021.6,4.94656]
[1742789354451,8.25771154,2021.9,2021.5,10.83226]
[1742789355674,3.31186154,2021.9,2021.5,15.7789]
[1742789355846,3.31186154,2021.9,2021.6,4.94647]
[1742789356036,9.02379154,2022.1,2021.7,4.94619]
[1742789356442,3.31186154,2021.9,2021.5,10.83219]
[1742789356637,3.31186154,2021.9,2021.5,19.596039]
[1742789356945,3.31186154,2021.9,2021.6,4.94646]
[1742789357485,3.31186154,2021.7,2021.4,27.34]
[1742789357678,3.31186154,2021.7,2021.4,32.28697]
[1742789358984,8.25820154,2021.7,2021.4,27.34]
[1742789359381,9.02470154,2021.7,2021.4,27.34]
[1742789359592,4.94665,2021.6,2021.4,27.34]
[1742789360090,3.31186154,2021.5,2021.4,27.34]
[1742789360881,4.07836154,2021.7,2021.4,27.34]
[1742789361390,0.7665,2021.7,2021.4,32.28683]
[1742789361683,3.31186154,2021.8,2021.4,38.05542]
[1742789361878,3.31186154,2021.8,2021.5,4.94666]
[1742789362087,3.31186154,2021.8,2021.6,4.94656]
[1742789362462,3.31186154,2021.8,2021.5,4.94671]
[1742789362846,3.31186154,2021.8,2021.6,4.94647]
[1742789363052,4.9456,2022.0,2021.5,4.94671]
[1742789363053,4.94585,2021.9,2021.5,4.94671]
[1742789363355,3.31186154,2021.8,2021.6,4.94655]
[1742789364382,3.31186154,2021.8,2021.5,4.94671]
[1742789364614,4.94638,2021.7,2021.4,31.967242]
[1742789364753,4.94682,2021.5,2021.4,27.34]
[1742789366255,8.25868154,2021.5,2021.4,27.34]
[1742789367488,8.25868154,2021.5,2020.9,10.01318]
[1742789367489,4.94736,2021.3,2020.9,10.01318]
[1742789367689,13.20665154,2021.3,2020.9,10.01318]
[1742789367872,4.94703,2021.5,2021.0,4.94783]
[1742789368050,8.25889154,2021.5,2021.1,4.94771]
[1742789368256,8.25889154,2021.5,2021.0,4.94783]
[1742789368451,4.94716,2021.4,2021.0,4.94783]
[1742789369058,4.94716,2021.4,2021.1,4.94777]
[1742789369461,4.94716,2021.4,2021.0,4.94783]
[1742789369662,4.94716,2021.4,2021.0,7.89468165]
[1742789369960,4.94716,2021.4,2021.0,12.84253165]
[1742789370156,4.94716,2021.4,2021.0,7.89468165]
[1742789370460,8.25926154,2021.3,2020.9,10.01328]
[1742789370679,5.31448586,2021.6,2020.9,5.065]
[1742789370879,4.94667,2021.6,2021.2,5.76925]
[1742789371071,4.94684,2021.5,2021.2,0.8217]
[1742789371267,4.10066154,2021.3,2020.8,27.349]
[1742789371492,3.31186154,2021.0,2020.8,27.349]
[1742789371690,8.25992154,2021.0,2020.8,27.349]
[1742789371998,3.31186154,2021.0,2020.8,27.349]
[1742789372881,3.31186154,2021.0,2020.8,32.29753]
[1742789373070,3.31186154,2021.0,2020.8,27.349]
[1742789373270,3.31186154,2021.0,2020.8,32.29752]
[1742789373471,3.31186154,2021.0,2020.8,27.349]
[1742789373891,3.31186154,2021.2,2020.8,27.349]
[1742789374089,4.94708,2021.4,2020.9,0.7689]
[1742789374090,3.31186154,2021.4,2020.9,0.7689]
[1742789374388,3.31186154,2021.4,2021.0,4.94786]
[1742789374576,3.31186154,2021.2,2020.9,5.71714]
[1742789374784,3.31186154,2021.2,2020.8,27.349]
[1742789375092,8.25944154,2021.2,2020.8,27.349]
[1742789375389,11.62850169,2021.6,2020.8,27.349]
[1742789375390,3.31186154,2021.0,2020.8,27.349]
[1742789375685,3.31186154,2021.0,2020.8,32.29753]
[1742789375889,0.7692,2021.1,2020.8,27.349]
[1742789376289,3.31186154,2021.2,2020.8,27.349]
[1742789376493,7.14206154,2021.4,2021.0,4.94782]
[1742789376669,7.14206154,2021.4,2021.0,9.89574]
[1742789376871,7.14206154,2021.4,2021.0,4.94782]
[1742789377187,7.14206154,2021.4,2021.0,9.89575]
[1742789377372,7.14206154,2021.4,2021.0,4.94782]
[1742789377689,7.14206154,2021.4,2021.0,13.44192599]
[1742789377895,7.14206154,2021.4,2021.0,8.49401599]
[1742789378283,6.31186154,2021.4,2021.1,4.94777]
[1742789378500,6.31186154,2021.4,2021.0,8.49401599]
[1742789379398,3.31186154,2021.2,2020.9,8.18818]
[1742789379786,3.31186154,2021.2,2020.9,13.13628]
[1742789381199,3.31186154,2021.2,2020.9,8.188]
[1742789381495,3.31186154,2021.2,2020.9,4.9481]
[1742789381795,3.31186154,2021.2,2020.9,9.9781]
[1742789382096,11.25907154,2021.4,2020.9,9.9781]
[1742789382784,11.25907154,2021.4,2020.9,14.9263]
[1742789382981,11.25907154,2021.4,2021.0,4.94804]
[1742789383566,11.25907154,2021.4,2020.9,4.9481]
[1742789383878,11.25907154,2021.4,2020.8,28.1704]
[1742789383879,3.31186154,2021.0,2020.8,27.349]
[1742789384181,5.77849,2020.9,2020.8,27.349]
[1742789384386,0.8302,2020.9,2020.5,4.94921]
[1742789384598,0.8302,2020.9,2020.5,6.021201]
[1742789384800,5.77861,2020.9,2020.5,6.021251]
[1742789385094,3.31186154,2021.0,2020.6,0.46158103]
[1742789385293,3.31186154,2021.0,2020.6,5.41048103]
[1742789385793,3.69200458,2021.0,2020.6,0.46158103]
[1742789385965,8.26040154,2020.8,2020.6,0.46158103]
[1742789386167,0.8302,2020.7,2020.6,0.46158103]
[1742789386367,0.8302,2020.7,2020.4,0.369132]
[1742789386568,0.8302,2020.7,2020.3,6.05731165]
[1742789386768,0.8302,2020.7,2020.3,6.05740165]
[1742789387268,0.8302,2020.7,2020.4,0.46188398]
[1742789387670,3.31186154,2020.6,2020.4,0.46188398]
[1742789388470,3.31186154,2020.6,2020.3,4.94973]
[1742789388702,3.31186154,2020.6,2020.2,9.89978]
[1742789388873,3.31186154,2020.6,2020.2,4.94989]
[1742789389073,3.31186154,2020.6,2020.2,9.89979]
[1742789389705,9.24036558,2020.6,2020.1,27.357]
[1742789389899,13.21021154,2020.6,2020.1,27.357]
[1742789390104,4.94932,2020.5,2020.1,27.357]
[1742789390672,0.8019,2020.3,2020.1,27.357]
[1742789391909,0.8019,2020.3,2020.2,4.95]
[1742789392102,4.11686154,2020.6,2020.3,4.94967]
[1742789392303,4.11686154,2020.6,2020.2,4.95]
[1742789393086,8.26151154,2020.4,2020.1,27.357]
[1742789393279,4.11686154,2020.2,2020.1,27.357]
[1742789393902,4.95041,2020.1,2019.5,38.15368]
[1742789394110,3.31186154,2020.0,2019.6,4.95147]
[1742789395282,8.26247154,2020.0,2019.5,32.31567]
[1742789395477,3.31186154,2019.6,2019.1,33.2032]
[1742789395682,3.31186154,2019.6,2019.3,4.95198]
[1742789395892,8.26285154,2019.8,2019.3,9.90409]
[1742789396092,3.31186154,2019.8,2019.4,4.95186]
[1742789396299,3.31186154,2019.8,2019.4,5.942244]
[1742789396687,3.31186154,2019.8,2019.5,4.95168]
[1742789397087,3.31186154,2019.8,2019.4,5.942304]
[1742789397988,3.31186154,2019.8,2019.5,4.95167]
[1742789398192,3.31186154,2019.8,2019.4,5.942304]
[1742789398391,3.31186154,2019.8,2019.4,5.942244]
[1742789399137,3.805,2019.9,2019.7,4.95123]
[1742789399343,3.805,2019.9,2019.6,4.95144]
[1742789399488,3.805,2019.9,2019.6,5.92831496]
[1742789399687,0.805,2020.1,2019.6,0.97687496]
[1742789399927,0.805,2020.1,2019.8,4.95097]
[1742789400834,4.11686154,2020.1,2019.7,6.02725327]
[1742789401021,9.06714154,2020.1,2019.7,6.02725327]
[1742789401219,9.06714154,2020.1,2019.6,10.87948496]
[1742789401539,3.31186154,2019.9,2019.6,0.97687496]
[1742789401691,4.11686154,2019.7,2019.2,4.95243]
[1742789402025,8.26371154,2019.5,2019.1,5.023]
[1742789402222,8.26371154,2019.5,2019.1,5.60672]
[1742789402395,3.31186154,2019.5,2019.1,10.55931]
[1742789402595,9.43965687,2019.7,2019.2,4.95228]
[1742789403028,9.43965687,2019.7,2019.2,5.92360059]
[1742789403223,3.31186154,2019.5,2019.2,0.97132059]
[1742789403710,4.95149,2019.6,2019.2,5.92354059]
[1742789404105,9.06809154,2019.7,2019.3,4.9522]
[1742789405831,0.805,2019.7,2019.3,1.58987406]
[1742789405998,12.06771154,2019.9,2019.5,4.95147]
[1742789406634,4.11686154,2019.9,2019.6,4.95144]
[1742789406834,4.9502,2020.2,2019.7,4.95113]
[1742789406835,9.06706154,2020.2,2019.7,4.95113]
[1742789407130,0.805,2020.2,2019.9,4.95074]
[1742789407327,4.11686154,2020.2,2019.8,5.76507]
[1742789407500,4.11686154,2020.2,2019.8,6.93741172]
[1742789407912,4.11686154,2020.2,2019.9,4.95061]
[1742789408125,3.31186154,2020.2,2019.9,9.90121]
[1742789408498,3.31186154,2020.2,2019.8,1.98654172]
[1742789408827,4.95024,2020.1,2019.8,1.17234172]
[1742789409027,9.09455154,2020.0,2019.7,1.00711716]
[1742789409233,4.95084,2019.9,2019.7,1.00711716]
[1742789409632,9.09455154,2020.0,2019.7,1.00711716]
[1742789412632,4.14396154,2020.0,2019.7,1.00711716]
[1742789412802,3.31186154,2020.0,2019.7,10.90925716]
[1742789413007,3.31186154,2020.0,2019.7,5.95815716]
[1742789413398,3.31186154,2020.0,2019.7,1.00711716]
[1742789414037,4.14396154,2020.2,2019.7,2.10425688]
[1742789414338,3.31186154,2020.0,2019.8,4.95076]
[1742789414635,8.26248154,2020.0,2019.7,1.00711716]
[1742789415135,4.95098,2019.8,2019.7,1.00711716]
[1742789415511,4.95077,2019.9,2019.7,1.00711716]
[1742789415831,8.26236154,2020.0,2019.7,1.00711716]
[1742789417040,13.21305154,2020.0,2019.7,1.00711716]
[1742789417337,3.31186154,2019.8,2019.7,1.00711716]
[1742789417640,4.95172,2019.5,2019.4,27.376]
[1742789418009,9.90425,2019.4,2019.2,1.00216221]
[1742789418319,8.26397154,2019.4,2019.2,1.00216221]
[1742789418616,13.21615154,2019.4,2019.0,4.95294]
[1742789418817,4.95222,2019.3,2018.9,9.90609]
[1742789419018,8.26397154,2019.4,2019.0,4.95288]
[1742789419212,4.95221,2019.3,2019.2,0.98004403]
[1742789420855,8.26388154,2019.4,2019.2,0.98004403]
[1742789421377,4.95221,2019.3,2019.2,0.98004403]
[1742789421715,8.26388154,2019.4,2018.9,4.953]
[1742789421914,15.68068,2019.7,2019.2,0.7904]
[1742789422171,5.73723,2019.7,2019.3,4.95212]
[1742789422334,9.04909154,2019.7,2019.3,4.95212]
[1742789422522,3.31186154,2019.7,2019.4,4.95183]
[1742789422721,7.95124,2019.7,2019.3,9.90409]
[1742789422923,7.95124,2019.7,2019.3,11.5709309]
[1742789423152,13.21401154,2019.8,2019.4,4.95192]
[1742789423354,3.31186154,2019.8,2019.5,4.95167]
[1742789423661,8.26285154,2019.8,2019.5,1.01329125]
[1742789424549,4.95124,2019.7,2019.5,1.01329125]
[1742789424751,3.31186154,2019.6,2019.5,1.01329125]
[1742789425453,8.26290154,2019.8,2019.5,1.01329125]
[1742789426048,3.31186154,2020.0,2019.6,0.7904]
[1742789426353,11.26196154,2020.2,2019.8,4.95098]
[1742789426853,16.21220154,2020.2,2019.7,14.86908]
[1742789427052,4.95044,2020.1,2019.7,9.91798]
[1742789427368,4.95044,2020.1,2019.7,16.53639913]
[1742789427657,4.95036,2020.1,2019.7,11.58529913]
[1742789427872,4.95036,2020.1,2019.7,16.53636913]
[1742789428027,11.26193154,2020.2,2019.8,4.95096]
[1742789428221,4.95028,2020.1,2019.7,11.58529913]
[1742789428460,4.95028,2020.1,2019.7,16.53641913]
[1742789428664,4.95028,2020.1,2019.7,16.53633913]
[1742789428867,8.26193154,2020.2,2019.8,6.68349391]
[1742789429179,8.26193154,2020.2,2019.9,0.99762446]
[1742789430271,0.786,2020.3,2020.0,4.95029]
[1742789430453,0.786,2020.7,2020.1,1.38519145]
[1742789430657,4.95003,2020.2,2020.0,4.963]
[1742789430972,9.04767154,2020.3,2020.0,4.963]
[1742789431135,9.04767154,2020.3,2019.9,6.75102446]
[1742789431333,4.95016,2020.2,2019.9,6.75102446]
[1742789431567,4.95016,2020.2,2019.9,4.963]
[1742789431968,13.21154154,2020.3,2019.9,4.963]
[1742789432272,13.21153154,2020.3,2019.8,9.91282]
[1742789432460,8.26162154,2020.3,2019.9,4.95072]
[1742789433252,13.21149154,2020.3,2019.9,4.95072]
[1742789433457,8.26162154,2020.3,2019.9,4.95072]
[1742789433666,8.26162154,2020.3,2019.9,4.95056]
[1742789433852,13.21149154,2020.3,2019.9,4.95056]
[1742789434595,4.95,2020.2,2020.1,0.07293566]
[1742789434735,8.736,2020.2,2020.1,5.66e-06]
[1742789434935,9.11174575,2020.2,2020.1,5.66e-06]
[1742789435138,14.10074575,2020.2,2020.1,5.66e-06]
[1742789435369,14.09974575,2020.2,2020.1,5.66e-06]
[1742789436168,9.11174575,2020.2,2020.1,5.66e-06]
[1742789436542,14.09574575,2020.2,2020.1,5.66e-06]
[1742789436761,9.11174575,2020.2,2020.1,5.66e-06]
[1742789436958,8.736,2020.2,2020.1,5.66e-06]
[1742789438551,7.95,2020.2,2020.1,5.66e-06]
[1742789438772,11.26186154,2020.2,2020.1,5.66e-06]
[1742789440220,20.32562308,2020.2,2020.1,5.66e-06]
[1742789440662,17.01376154,2020.2,2020.1,5.66e-06]
[1742789441286,12.03576154,2020.2,2020.1,5.66e-06]
[1742789443211,11.26186154,2020.2,2020.1,5.66e-06]
[1742789447523,12.03576154,2020.2,2020.1,5.66e-06]
[1742789449833,11.26186154,2020.2,2020.1,5.66e-06]
[1742789453199,11.26198154,2020.2,2019.8,4.95086]
[1742789453549,4.95038,2020.1,2019.7,9.88106192]
[1742789453774,4.95038,2020.1,2019.7,9.88098192]
[1742789453941,4.95038,2020.1,2019.8,4.40019641]
[1742789454754,8.26201154,2020.2,2020.0,0.97259553]
[1742789455352,3.31186154,2020.2,2020.0,0.97259553]
[1742789455723,3.0,2020.3,2020.0,5.92292553]
[1742789455923,3.0,2020.3,2020.0,7.03404772]
[1742789456351,9.89832,2020.6,2020.2,4.94979]
[1742789456658,8.26094154,2020.6,2020.2,4.94979]
[1742789456853,8.26121154,2020.5,2020.1,10.66734]
[1742789457653,4.94963,2020.4,2020.1,5.7171]
[1742789457826,13.21069154,2020.5,2020.1,12.43741077]
[1742789458026,8.26121154,2020.5,2020.1,12.43741077]
[1742789459127,8.26121154,2020.5,2020.2,27.373]
[1742789460153,13.21069154,2020.5,2020.2,27.373]
[1742789460350,8.26161154,2020.3,2020.2,27.373]
[1742789460933,3.31186154,2020.3,2020.2,27.373]
[1742789461333,8.26114154,2020.5,2020.2,28.1611]
[1742789462250,8.26114154,2020.5,2020.2,33.0931]
[1742789462645,3.31186154,2020.5,2020.2,33.0931]
[1742789462836,3.31186154,2020.5,2020.2,38.04301]
[1742789463261,3.31186154,2020.5,2020.2,42.43957755]
[1742789464073,3.31186154,2020.5,2020.3,4.94965]
[1742789464376,3.31186154,2020.5,2020.2,37.48966755]
[1742789464548,3.31186154,2020.3,2020.2,33.0871]
[1742789464749,3.31186154,2020.3,2020.2,32.299]
[1742789465774,9.02361154,2020.3,2020.2,27.373]
[1742789467679,4.95068,2020.0,2019.8,4.924]
[1742789467857,3.31186154,2020.1,2019.8,4.924]
[1742789468062,3.31186154,2020.3,2020.0,5.70143]
[1742789468262,3.31186154,2020.3,2020.0,5.70133]
[1742789468881,8.26114154,2020.5,2020.0,0.751]
[1742789469174,8.26114154,2020.5,2020.1,4.9501]
[1742789469474,8.26114154,2020.5,2020.2,4.923]
[1742789469670,13.21061154,2020.5,2020.2,4.923]
[1742789470186,3.31186154,2020.3,2020.2,4.923]
[1742789471043,3.31186154,2020.4,2020.2,4.923]
[1742789472272,3.31186154,2020.4,2020.2,9.87299]
[1742789472491,0.7705,2020.7,2020.4,4.9494]
[1742789472492,3.31186154,2020.7,2020.4,4.9494]
[1742789472775,8.26064154,2020.7,2020.4,4.9494]
[1742789473275,8.26064154,2020.7,2020.3,5.7007]
[1742789475084,13.20963154,2020.7,2020.3,5.7007]
[1742789475388,8.26064154,2020.7,2020.3,5.7007]
[1742789475892,3.31186154,2020.8,2020.4,4.94944]
[1742789476190,8.26041154,2020.8,2020.4,4.94944]
[1742789476895,3.31186154,2020.8,2020.5,4.94926]
[1742789477188,8.26042154,2020.8,2020.4,4.94942]
[1742789478298,8.26042154,2020.8,2020.5,4.94926]
[1742789478498,3.31186154,2020.8,2020.4,4.94948]
[1742789478995,8.26043154,2020.8,2020.4,4.94948]
[1742789479192,0.36417766,2021.0,2020.6,4.94888]
[1742789479193,8.25997154,2021.0,2020.6,4.94888]
[1742789479399,3.31186154,2021.0,2020.7,1.00802672]
[1742789479565,8.25999154,2021.0,2020.7,1.00802672]
[1742789480502,8.25999154,2021.0,2020.6,9.84288]
[1742789480972,3.31186154,2021.0,2020.7,4.94865]
[1742789481178,4.94782,2021.1,2020.8,5.7541]
[1742789481691,8.25943154,2021.2,2020.8,5.7541]
[1742789482301,13.20717154,2021.2,2020.8,5.7541]
[1742789482801,8.25943154,2021.2,2020.8,5.7541]
[1742789482987,4.94788,2021.1,2020.8,0.8056]
[1742789483323,8.25943154,2021.2,2020.8,0.8056]
[1742789483472,13.20719154,2021.2,2020.8,5.754]
[1742789485173,4.94784,2021.1,2020.8,0.8056]
[1742789485711,4.94784,2021.1,2020.8,5.7541]
[1742789485899,4.94784,2021.1,2020.8,0.8056]
[1742789486207,4.9478,2021.1,2020.8,0.8056]
[1742789486412,8.25999154,2021.0,2020.9,4.876]
[1742789487533,8.25999154,2021.0,2020.8,0.8056]
[1742789487814,8.25999154,2021.0,2020.8,5.6766]
[1742789488316,4.94832,2020.9,2020.8,4.87]
[1742789490739,4.94853,2020.8,2020.6,28.1736]
[1742789490946,8.26064154,2020.7,2020.6,27.368]
[1742789492444,9.07704154,2020.7,2020.6,27.368]
[1742789492646,5.76518,2020.7,2020.6,27.368]
[1742789492846,8.76518,2020.7,2020.6,27.368]
[1742789493924,4.94984,2020.3,2020.0,28.1138]
[1742789494128,4.95024,2020.1,2020.0,27.363]
[1742789494519,4.95101,2019.8,2019.6,5.6158]
[1742789495353,8.26266154,2019.9,2019.6,5.6158]
[1742789495550,3.31186154,2019.9,2019.7,0.97612236]
[1742789495726,8.26226154,2020.1,2019.7,5.92723236]
[1742789495932,8.26226154,2020.1,2019.7,0.97612236]
[1742789496246,8.34606776,2020.0,2019.7,0.97612236]
[1742789496451,8.34598776,2020.0,2019.7,0.97612236]
[1742789496865,13.29670776,2020.0,2019.7,0.97612236]
[1742789497151,4.95083,2019.9,2019.7,0.97612236]
[1742789497314,3.39548776,2020.0,2019.7,0.97612236]
[1742789497514,0.8164,2020.3,2020.0,0.7508]
[1742789497515,8.34529776,2020.3,2020.0,0.7508]
[1742789497719,3.39548776,2020.3,2020.0,0.7508]
[1742789497945,3.39548776,2020.3,2020.0,5.6138]
[1742789498443,8.34528776,2020.3,2020.0,5.6138]
[1742789498646,3.39548776,2020.3,2020.0,5.6138]
[1742789498851,7.94963,2020.4,2020.0,5.6138]
[1742789499058,11.34511776,2020.4,2020.0,10.5642]
[1742789499220,11.34511776,2020.4,2020.0,11.54656912]
[1742789499422,8.34462776,2020.6,2020.1,4.95014]
[1742789499628,3.39548776,2020.6,2020.3,0.7508]
[1742789499828,3.39548776,2020.6,2020.4,0.570061]
[1742789500559,3.39548776,2020.8,2020.4,5.519541]
[1742789500859,10.68578,2020.9,2020.4,5.519541]
[1742789500860,3.39548776,2020.9,2020.5,4.94925]
[1742789501024,3.39548776,2020.9,2020.5,6.5572091]
[1742789501367,8.34386776,2020.9,2020.5,6.5572091]
[1742789501965,3.39548776,2020.9,2020.5,6.5572091]
[1742789502125,0.7888,2021.1,2020.6,5.69972]
[1742789502126,8.34338776,2021.1,2020.6,5.69972]
[1742789502326,8.34338776,2021.1,2020.6,7.46842101]
[1742789502649,3.39548776,2020.9,2020.6,7.46842101]
[1742789503140,3.39548776,2020.9,2020.6,2.51950101]
[1742789503938,3.39548776,2020.9,2020.6,7.46842101]
[1742789504139,3.39548776,2021.1,2020.6,2.51950101]
[1742789504334,3.39548776,2020.9,2020.6,0.7508]
[1742789504555,8.34377776,2020.9,2020.6,0.7508]
[1742789504959,8.34377776,2020.9,2020.6,32.9708]
[1742789505759,8.34377776,2020.9,2020.6,32.9678]
[1742789506257,4.94856,2020.8,2020.6,28.1168]
[1742789506450,3.39548776,2020.7,2020.6,27.366]
[1742789507156,8.34377776,2020.9,2020.6,27.366]
[1742789507362,8.34377776,2020.9,2020.7,0.7508]
[1742789507576,13.29218776,2020.9,2020.6,27.366]
[1742789508264,4.94862,2020.8,2020.6,27.366]
[1742789508559,4.94878,2020.7,2020.6,27.366]
[1742789508740,8.34426776,2020.7,2020.6,27.366]
[1742789509537,8.34426776,2020.7,2020.6,28.35269111]
[1742789509768,8.34426776,2020.7,2020.6,0.98669111]
[1742789509937,5.73742,2020.8,2020.4,32.215]
[1742789510270,3.39548776,2020.8,2020.5,5.037312]
[1742789510435,3.39548776,2020.8,2020.5,0.7508]
[1742789510773,8.34405776,2020.8,2020.5,0.7508]
[1742789511075,3.39548776,2020.8,2020.5,0.7508]
[1742789511362,3.39548776,2020.8,2020.4,27.365]
[1742789511363,9.89786,2020.7,2020.4,32.222]
[1742789511567,8.34407776,2020.8,2020.4,32.222]
[1742789512069,8.34407776,2020.8,2020.4,37.17149]
[1742789512239,8.34407776,2020.8,2020.4,36.31392771]
[1742789513063,3.39548776,2020.8,2020.4,41.26329771]
[1742789513268,3.39548776,2020.8,2020.4,26.50743771]
[1742789513269,3.39548776,2020.6,2020.4,26.50743771]
[1742789513563,8.34395776,2020.9,2020.5,0.7513]
[1742789513768,8.34395776,2020.9,2020.5,5.70052]
[1742789515285,8.34427776,2020.7,2020.5,0.7513]
[1742789518795,9.14604776,2020.5,2020.4,26.50743771]
[1742789520191,15.54153552,2020.5,2020.4,26.50743771]
[1742789520358,4.95,2020.2,2019.9,4.85]